bitfinex/quotes_BTCUSD_20251226
["timestamp","ask_amount","ask_price","bid_price","bid_amount"]
[1766744672996,0.01127116,88722.0,88713.0,0.0225523]
[1766744673173,0.0112709,88724.0,88714.0,0.01127217]
[1766744673377,0.0112709,88724.0,88715.0,0.01127205]
[1766744674250,0.0112709,88724.0,88716.0,0.01127192]
[1766744674449,0.01127103,88723.0,88714.0,0.01127217]
[1766744675438,0.01127103,88723.0,88715.0,0.01127205]
[1766744676273,0.0112709,88724.0,88715.0,0.01127205]
[1766744677275,0.01127078,88725.0,88716.0,0.01127192]
[1766744678351,0.01127078,88725.0,88717.0,0.01127179]
[1766744678768,0.01127065,88726.0,88717.0,0.01127179]
[1766744679372,0.01127078,88725.0,88716.0,0.01127192]
[1766744679891,0.0112709,88724.0,88715.0,0.01127205]
[1766744680096,0.01127103,88723.0,88714.0,0.01127217]
[1766744681476,0.01127103,88723.0,88715.0,0.01127205]
[1766744681938,0.0112709,88724.0,88715.0,0.01127205]
[1766744683515,0.01127103,88723.0,88714.0,0.01127217]
[1766744683895,0.01127103,88723.0,88715.0,0.01127205]
[1766744684212,0.01127103,88723.0,88714.0,0.01127217]
[1766744684913,0.01127116,88722.0,88713.0,0.01128]
[1766744685122,0.01127116,88722.0,88713.0,0.0225523]
[1766744685294,0.01127116,88722.0,88714.0,0.01127217]
[1766744685619,0.01127128,88721.0,88713.0,0.0225523]
[1766744685822,0.01127116,88722.0,88714.0,0.01127217]
[1766744686000,0.01127116,88722.0,88713.0,0.0225523]
[1766744686205,0.0112709,88724.0,88714.0,0.06763278]
[1766744686594,0.01127103,88723.0,88715.0,0.01127205]
[1766744686802,0.0112709,88724.0,88715.0,0.01127205]
[1766744687459,0.01127103,88723.0,88715.0,0.01127205]
[1766744687760,0.0112709,88724.0,88715.0,0.01127205]
[1766744688444,0.01127103,88723.0,88715.0,0.01127205]
[1766744688736,0.0112709,88724.0,88715.0,0.01127205]
[1766744689246,0.0112709,88724.0,88716.0,0.01127192]
[1766744689746,0.0112709,88724.0,88715.0,0.01127205]
[1766744692205,0.01127103,88723.0,88714.0,0.01127217]
[1766744693549,0.01127116,88722.0,88714.0,0.01127217]
[1766744693741,0.01127103,88723.0,88714.0,0.01127217]
[1766744697065,0.05635423,88725.0,88714.0,0.06763243]
[1766744697234,0.0112709,88724.0,88714.0,0.06763243]
[1766744697435,0.01127103,88723.0,88715.0,0.01127205]
[1766744697643,0.0112709,88724.0,88715.0,0.01127205]
[1766744700074,0.0112709,88724.0,88713.0,0.0225523]
[1766744700289,0.06763288,88727.0,88703.0,0.01127357]
[1766744700290,0.000549,88713.0,88703.0,0.01127357]
[1766744700579,0.01127255,88711.0,88704.0,0.01128]
[1766744700962,0.06763433,88713.0,88704.0,0.01128]
[1766744701177,0.01127243,88712.0,88705.0,0.01128]
[1766744701547,0.0112723,88713.0,88705.0,0.01128]
[1766744701750,0.01127128,88721.0,88713.0,0.0112723]
[1766744701952,0.01127014,88730.0,88717.0,0.01127179]
[1766744702177,0.02255052,88727.0,88717.0,0.01127179]
[1766744702404,0.0112709,88724.0,88713.0,0.0112723]
[1766744702580,0.0112709,88724.0,88715.0,0.01127205]
[1766744703118,0.01127103,88723.0,88715.0,0.01127205]
[1766744703404,0.01127116,88722.0,88713.0,0.0112723]
[1766744703581,0.05635364,88726.0,88715.0,0.01127205]
[1766744703765,0.01127078,88725.0,88716.0,0.01127192]
[1766744703970,0.0112709,88724.0,88715.0,0.01127205]
[1766744704191,0.0112709,88724.0,88716.0,0.01127192]
[1766744704371,0.0112709,88724.0,88715.0,0.01127205]
[1766744705104,0.0112709,88724.0,88716.0,0.01127192]
[1766744705422,0.0112709,88724.0,88715.0,0.01127205]
[1766744705559,0.0112709,88724.0,88716.0,0.01127192]
[1766744705762,0.01127065,88726.0,88717.0,0.01127179]
[1766744705970,0.01128,88727.0,88720.0,0.01127141]
[1766744706311,0.01128,88727.0,88723.0,0.01127103]
[1766744709033,0.01128,88727.0,88724.0,0.0112709]
[1766744709191,0.02254951,88735.0,88727.0,0.01182052]
[1766744709389,0.02254951,88735.0,88727.0,0.00055]
[1766744709609,0.02254951,88735.0,88726.0,0.01127065]
[1766744709829,0.01126963,88734.0,88726.0,0.01127065]
[1766744710128,0.01126963,88734.0,88725.0,0.01127078]
[1766744710424,0.02254951,88735.0,88725.0,0.01127078]
[1766744710727,0.02254951,88735.0,88726.0,0.01127065]
[1766744711532,0.02254951,88735.0,88727.0,0.01127052]
[1766744711952,0.000549,88727.0,88725.0,0.01127078]
[1766744712119,0.01126963,88734.0,88726.0,0.01127065]
[1766744713100,0.02254951,88735.0,88727.0,0.01127052]
[1766744713315,0.01126963,88734.0,88725.0,0.01127078]
[1766744713513,0.01126963,88734.0,88726.0,0.01127065]
[1766744714133,0.01126963,88734.0,88725.0,0.01127078]
[1766744714356,0.02254951,88735.0,88726.0,0.01127065]
[1766744717114,0.01126963,88734.0,88722.0,0.0563552]
[1766744717316,0.000549,88726.0,88720.0,0.01127141]
[1766744717722,0.01127014,88730.0,88721.0,0.01127128]
[1766744718276,0.01127001,88731.0,88722.0,0.01127116]
[1766744718860,0.01127001,88731.0,88723.0,0.01127103]
[1766744719310,0.01127014,88730.0,88722.0,0.01127116]
[1766744719508,0.01127001,88731.0,88722.0,0.01127116]
[1766744719833,0.01127014,88730.0,88721.0,0.01127128]
[1766744720127,0.01126989,88732.0,88722.0,0.01127116]
[1766744720332,0.01126989,88732.0,88721.0,0.06762715]
[1766744720333,0.01127014,88730.0,88721.0,0.01127128]
[1766744720558,0.01127001,88731.0,88722.0,0.01127116]
[1766744720789,0.01126989,88732.0,88723.0,0.01127103]
[1766744722156,0.01127014,88730.0,88721.0,0.01127128]
[1766744722361,0.01127001,88731.0,88721.0,0.06762714]
[1766744722564,0.01127001,88731.0,88723.0,0.01127103]
[1766744722765,0.01126989,88732.0,88723.0,0.01127103]
[1766744724189,0.01127014,88730.0,88722.0,0.01127116]
[1766744724362,0.01127001,88731.0,88722.0,0.01127116]
[1766744724571,0.01127001,88731.0,88723.0,0.01127103]
[1766744725143,0.01127001,88731.0,88722.0,0.01127116]
[1766744725341,0.01127001,88731.0,88720.0,0.06762812]
[1766744725587,0.01127001,88731.0,88723.0,0.01127103]
[1766744725959,0.06761963,88732.0,88723.0,0.01127103]
[1766744726509,0.01127001,88731.0,88722.0,0.01127116]
[1766744726812,0.06761815,88734.0,88724.0,0.0112709]
[1766744727023,0.01126976,88733.0,88724.0,0.0112709]
[1766744727233,0.01126976,88733.0,88725.0,0.01127078]
[1766744727421,0.02254951,88735.0,88725.0,0.01127078]
[1766744727636,0.02254951,88735.0,88727.0,0.01127052]
[1766744727783,0.02254951,88735.0,88726.0,0.01127065]
[1766744727997,0.07889738,88735.0,88724.0,0.0112709]
[1766744728200,0.01126976,88733.0,88725.0,0.01127078]
[1766744728398,0.01126976,88733.0,88723.0,0.01127103]
[1766744728685,0.02254951,88735.0,88725.0,0.01127078]
[1766744728816,0.02254951,88735.0,88726.0,0.01127065]
[1766744729154,0.01126989,88732.0,88718.0,0.10146581]
[1766744729453,0.05635419,88725.0,88718.0,0.04510791]
[1766744729613,0.06762497,88725.0,88718.0,0.04510791]
[1766744729823,0.01127103,88723.0,88718.0,0.01128]
[1766744730024,0.0112709,88724.0,88718.0,0.01128]
[1766744730241,0.01127103,88723.0,88718.0,0.01128]
[1766744730446,0.0112709,88724.0,88718.0,0.01128]
[1766744730840,0.01127078,88725.0,88718.0,0.01128]
[1766744731182,0.01127065,88726.0,88718.0,0.01128]
[1766744731836,0.05635126,88730.0,88720.0,0.01127141]
[1766744732205,0.01126989,88732.0,88721.0,0.06762772]
[1766744732410,0.01127027,88729.0,88719.0,0.01127154]
[1766744732645,0.01127014,88730.0,88721.0,0.01127128]
[1766744733127,0.01127027,88729.0,88720.0,0.01127141]
[1766744733508,0.01127027,88729.0,88721.0,0.01127128]
[1766744733766,0.01127014,88730.0,88721.0,0.01127128]
[1766744736335,0.01127027,88729.0,88720.0,0.01127141]
[1766744736536,0.01127039,88728.0,88719.0,0.02254168]
[1766744737144,0.01127039,88728.0,88720.0,0.01127141]
[1766744738119,0.01127027,88729.0,88720.0,0.01127141]
[1766744739098,0.01127039,88728.0,88720.0,0.01127141]
[1766744739302,0.01127027,88729.0,88720.0,0.01127141]
[1766744741018,0.01127039,88728.0,88719.0,0.02254168]
[1766744741406,0.01127039,88728.0,88720.0,0.01127141]
[1766744741847,0.01127027,88729.0,88720.0,0.01127141]
[1766744743483,0.45063555,88764.0,88729.0,0.01127027]
[1766744743621,0.01128,88753.0,88745.0,0.01126824]
[1766744743819,0.01128,88753.0,88747.0,0.01126798]
[1766744744028,0.01126595,88763.0,88753.0,0.01126722]
[1766744744220,0.01128,88759.0,88753.0,0.01126722]
[1766744744779,0.01128,88759.0,88755.0,0.01126697]
[1766744744935,0.01128,88759.0,88754.0,0.01126709]
[1766744745143,0.01126544,88767.0,88756.0,0.01126684]
[1766744745342,0.01126455,88774.0,88761.0,0.0112662]
[1766744745576,0.01128,88773.0,88765.0,0.0112657]
[1766744745881,0.01128,88773.0,88761.0,0.06759682]
[1766744745882,0.01126481,88772.0,88761.0,0.06759682]
[1766744746243,0.00794467,88772.0,88763.0,0.01126595]
[1766744746457,0.02254468,88773.0,88763.0,0.01126595]
[1766744746992,0.02254468,88773.0,88764.0,0.01126582]
[1766744747290,0.01126494,88771.0,88763.0,0.01126595]
[1766744747500,0.02254468,88773.0,88763.0,0.01126595]
[1766744747725,0.01126494,88771.0,88762.0,0.01126608]
[1766744747873,0.01126481,88772.0,88763.0,0.01126595]
[1766744748398,0.02254468,88773.0,88765.0,0.0112657]
[1766744748705,0.01128,88773.0,88770.0,0.01126506]
[1766744749067,0.01128,88773.0,88770.0,0.06758992]
[1766744749265,0.01163915,88773.0,88770.0,0.06758992]
[1766744750088,0.00431689,88773.0,88770.0,0.06758992]
[1766744751577,0.00035915,88773.0,88770.0,0.06758992]
[1766744751916,0.00035915,88773.0,88770.0,0.01126506]
[1766744752298,0.00035915,88773.0,88768.0,0.01126532]
[1766744752498,0.00035915,88773.0,88770.0,0.01126506]
[1766744752682,0.00035915,88773.0,88769.0,0.01126519]
[1766744753491,0.00035915,88773.0,88768.0,0.01126532]
[1766744753681,0.00035915,88773.0,88767.0,0.01126544]
[1766744754029,0.00035915,88773.0,88765.0,0.0112657]
[1766744754234,0.000549,88767.0,88765.0,0.0112657]
[1766744754617,0.00035915,88773.0,88766.0,0.01126557]
[1766744755337,0.01162383,88773.0,88765.0,0.0112657]
[1766744755500,0.01126481,88772.0,88763.0,0.02253038]
[1766744755704,0.01126544,88767.0,88764.0,0.01128]
[1766744755919,0.01126519,88769.0,88764.0,0.01128]
[1766744756314,0.01126532,88768.0,88764.0,0.01128]
[1766744756534,0.01126519,88769.0,88761.0,0.01128]
[1766744756737,0.01126532,88768.0,88761.0,0.01128]
[1766744756945,0.01126544,88767.0,88761.0,0.01128]
[1766744757152,0.01126532,88768.0,88761.0,0.01128]
[1766744757453,0.01126544,88767.0,88761.0,0.01128]
[1766744757668,0.01126519,88769.0,88760.0,0.02254633]
[1766744757819,0.01126519,88769.0,88761.0,0.0112662]
[1766744758239,0.06759069,88770.0,88761.0,0.0112662]
[1766744758442,0.01126506,88770.0,88761.0,0.0112662]
[1766744758652,0.01126494,88771.0,88762.0,0.01126608]
[1766744759672,0.01126481,88772.0,88763.0,0.01126595]
[1766744759849,0.01126494,88771.0,88762.0,0.01126608]
[1766744760269,0.01126506,88770.0,88761.0,0.0112662]
[1766744760585,0.01126494,88771.0,88763.0,0.01126595]
[1766744760954,0.01126481,88772.0,88763.0,0.01126595]
[1766744761544,0.01126494,88771.0,88761.0,0.0112662]
[1766744761775,0.01126494,88771.0,88762.0,0.01126608]
[1766744761986,0.00035915,88773.0,88771.0,0.000549]
[1766744762159,0.01126354,88782.0,88773.0,0.00019085]
[1766744762360,0.01135283,88780.0,88774.0,0.01126455]
[1766744762964,0.01135283,88780.0,88773.0,0.01126468]
[1766744763167,0.01135283,88780.0,88774.0,0.01126455]
[1766744763363,0.01135283,88780.0,88773.0,0.01126468]
[1766744763572,0.01135283,88780.0,88774.0,0.01126455]
[1766744763744,0.01116283,88780.0,88774.0,0.01126455]
[1766744764817,0.01116283,88780.0,88775.0,0.01126443]
[1766744765208,0.01126252,88790.0,88780.0,0.01126379]
[1766744765346,0.01128,88789.0,88781.0,0.01126367]
[1766744765549,0.01128,88789.0,88784.0,0.01126329]
[1766744765866,0.000549,88784.0,88778.0,0.01126405]
[1766744766091,0.000549,88784.0,88778.0,0.01133688]
[1766744766260,0.01128,88794.0,88780.0,0.01126379]
[1766744766475,0.0112624,88791.0,88781.0,0.01126367]
[1766744766997,0.0112624,88791.0,88781.0,0.06758171]
[1766744767198,0.0112624,88791.0,88782.0,0.01126354]
[1766744767419,0.01128,88794.0,88791.0,0.00055]
[1766744768046,0.01128,88794.0,88787.0,0.01126291]
[1766744768047,0.01128,88794.0,88789.0,0.01126265]
[1766744768406,0.01126138,88799.0,88791.0,0.0112624]
[1766744768603,0.01128,88800.0,88791.0,0.0112624]
[1766744768823,0.01128,88800.0,88793.0,0.01126214]
[1766744769427,0.01128,88800.0,88791.0,0.0112624]
[1766744769627,0.01128,88800.0,88792.0,0.01126227]
[1766744769999,0.01128,88800.0,88791.0,0.0112624]
[1766744770200,0.02254126,88800.0,88792.0,0.01126227]
[1766744770438,0.02254126,88800.0,88791.0,0.0112624]
[1766744771076,0.02254126,88800.0,88792.0,0.01126227]
[1766744771245,0.01128,88800.0,88792.0,0.01126227]
[1766744771867,0.02254126,88800.0,88792.0,0.01126227]
[1766744772087,0.01128,88800.0,88793.0,0.01126214]
[1766744772501,0.01128,88800.0,88794.0,0.01126202]
[1766744772705,0.01128,88800.0,88792.0,0.01126227]
[1766744773118,0.01128,88800.0,88793.0,0.01126214]
[1766744773330,0.01128,88800.0,88794.0,0.01126202]
[1766744773538,0.01128,88800.0,88793.0,0.01126214]
[1766744773714,0.01128,88800.0,88792.0,0.01126227]
[1766744775195,0.02254126,88800.0,88791.0,0.0225424]
[1766744775733,0.02254126,88800.0,88792.0,0.01126227]
[1766744776027,0.01126126,88800.0,88792.0,0.01126227]
[1766744776380,0.01126138,88799.0,88791.0,0.01128]
[1766744776616,0.000549,88791.0,88788.0,0.01128]
[1766744777084,0.01126278,88788.0,88774.0,0.01126455]
[1766744777289,0.05631635,88785.0,88779.0,0.01126189]
[1766744777496,0.01126354,88782.0,88777.0,0.01128]
[1766744777707,0.01126455,88774.0,88763.0,0.01126595]
[1766744777853,0.01126481,88772.0,88768.0,0.01128]
[1766744778057,0.01126494,88771.0,88763.0,0.01126595]
[1766744778282,0.01126468,88773.0,88765.0,0.02256]
[1766744778443,0.01137215,88774.0,88765.0,0.02256]
[1766744778444,0.0001076,88774.0,88767.0,0.01126544]
[1766744778642,0.0001076,88774.0,88768.0,0.01126532]
[1766744778843,0.0001076,88774.0,88770.0,0.01126506]
[1766744779047,3.56e-05,88774.0,88769.0,0.06759109]
[1766744779239,3.56e-05,88774.0,88771.0,0.06758953]
[1766744779492,3.56e-05,88774.0,88772.0,0.05632353]
[1766744783943,0.0563115,88792.0,88778.0,0.01126405]
[1766744784143,0.0225424,88791.0,88782.0,0.01126354]
[1766744784346,0.01126252,88790.0,88778.0,0.0675842]
[1766744784491,0.01126278,88788.0,88775.0,0.01126443]
[1766744784692,0.05631561,88786.0,88776.0,0.0112643]
[1766744784946,0.06757864,88786.0,88775.0,0.01126443]
[1766744785310,0.01126329,88784.0,88775.0,0.01085685]
[1766744785753,0.01126341,88783.0,88775.0,0.01085685]
[1766744785910,0.01126341,88783.0,88774.0,0.01126455]
[1766744786553,0.01126316,88785.0,88775.0,0.06758625]
[1766744786852,0.06757864,88786.0,88777.0,0.01126417]
[1766744787160,0.01126316,88785.0,88775.0,0.01126443]
[1766744787565,0.06757864,88786.0,88777.0,0.01126417]
[1766744787778,0.01126316,88785.0,88777.0,0.01126417]
[1766744787980,0.06757864,88786.0,88777.0,0.01126417]
[1766744788202,0.01126316,88785.0,88777.0,0.01126417]
[1766744790293,0.01126303,88786.0,88777.0,0.01126417]
[1766744790697,0.01126303,88786.0,88778.0,0.01126405]
[1766744791212,0.01126303,88786.0,88777.0,0.01126417]
[1766744791413,0.01126316,88785.0,88776.0,0.0112643]
[1766744791609,0.01126316,88785.0,88777.0,0.01126417]
[1766744791790,0.01126303,88786.0,88777.0,0.01126417]
[1766744793087,0.01126316,88785.0,88777.0,0.01126417]
[1766744794074,0.01126303,88786.0,88777.0,0.01126417]
[1766744795315,0.01126316,88785.0,88777.0,0.01126417]
[1766744795877,0.01126316,88785.0,88775.0,0.06758653]
[1766744796094,0.01126316,88785.0,88776.0,0.0112643]
[1766744796491,0.01126303,88786.0,88777.0,0.01126417]
[1766744796721,0.06852,88785.0,88778.0,0.01126405]
[1766744796887,0.06852,88785.0,88779.0,0.01126392]
[1766744797501,0.06852,88785.0,88780.0,0.01126379]
[1766744797703,0.06852,88785.0,88779.0,0.01126392]
[1766744798118,0.06852,88785.0,88778.0,0.01126405]
[1766744800386,0.06852,88785.0,88777.0,0.01126417]
[1766744800709,0.07978316,88785.0,88776.0,0.06758551]
[1766744801039,0.07978316,88785.0,88777.0,0.01126417]
[1766744801590,0.000549,88777.0,88770.0,0.03380961]
[1766744801791,0.000549,88777.0,88772.0,0.01126481]
[1766744802032,0.06758249,88781.0,88772.0,0.01126481]
[1766744802268,0.01126367,88781.0,88773.0,0.01126468]
[1766744802472,0.07978341,88783.0,88774.0,0.02254455]
[1766744802649,0.06852,88783.0,88775.0,0.01126443]
[1766744802858,0.06852,88783.0,88776.0,0.0112643]
[1766744804366,0.06797,88783.0,88777.0,0.01126417]
[1766744804572,0.01126303,88786.0,88778.0,0.01126405]
[1766744804769,0.01126316,88785.0,88777.0,0.01126417]
[1766744804986,0.01126303,88786.0,88777.0,0.01126417]
[1766744805286,0.01126316,88785.0,88776.0,0.0112643]
[1766744805902,0.01126316,88785.0,88777.0,0.01126417]
[1766744806109,0.01126316,88785.0,88776.0,0.0112643]
[1766744806476,0.01126303,88786.0,88777.0,0.01126417]
[1766744806791,0.06757776,88787.0,88777.0,0.01126417]
[1766744806792,0.04384079,88787.0,88777.0,0.01126417]
[1766744807589,0.01126316,88785.0,88777.0,0.01126417]
[1766744808919,0.01126316,88785.0,88776.0,0.0112643]
[1766744811939,0.01126329,88784.0,88776.0,0.0112643]
[1766744812767,0.01126329,88784.0,88775.0,0.01126443]
[1766744813971,0.06907,88784.0,88773.0,0.01128]
[1766744814183,0.06907,88784.0,88774.0,0.010731]
[1766744814389,0.01126392,88779.0,88774.0,0.010731]
[1766744814619,0.01126379,88780.0,88773.0,0.01128]
[1766744816378,0.01126392,88779.0,88773.0,0.01128]
[1766744816833,0.01126392,88779.0,88770.0,0.01126506]
[1766744816834,0.06758245,88781.0,88772.0,0.01126481]
[1766744817025,0.01126367,88781.0,88773.0,0.01126468]
[1766744817434,0.01126354,88782.0,88774.0,0.01126455]
[1766744818878,0.01126341,88783.0,88774.0,0.01126455]
[1766744820136,0.01126341,88783.0,88775.0,0.01126443]
[1766744820342,0.08033329,88784.0,88775.0,0.01126443]
[1766744821149,0.08033329,88784.0,88776.0,0.0112643]
[1766744821544,0.08033329,88784.0,88775.0,0.01126443]
[1766744821950,0.08033329,88784.0,88776.0,0.0112643]
[1766744822379,0.08033329,88784.0,88775.0,0.01126443]
[1766744822580,0.01126341,88783.0,88774.0,0.01126455]
[1766744823044,0.08033329,88784.0,88775.0,0.01126443]
[1766744823630,0.01126341,88783.0,88775.0,0.01126443]
[1766744824545,0.01126341,88783.0,88774.0,0.01126455]
[1766744824745,0.08033329,88784.0,88775.0,0.01126443]
[1766744825381,0.01126341,88783.0,88775.0,0.01126443]
[1766744825744,0.01126341,88783.0,88774.0,0.01126455]
[1766744826112,0.01126341,88783.0,88775.0,0.01126443]
[1766744827195,0.01126341,88783.0,88774.0,0.01126455]
[1766744827456,0.01126341,88783.0,88775.0,0.01126443]
[1766744827742,0.01126341,88783.0,88774.0,0.01126455]
[1766744828312,0.08033329,88784.0,88775.0,0.01126443]
[1766744828507,0.01126303,88786.0,88776.0,0.05632104]
[1766744828729,0.01126329,88784.0,88775.0,0.07969443]
[1766744828929,0.01126354,88782.0,88774.0,0.01126455]
[1766744829829,0.01126354,88782.0,88773.0,0.01126468]
[1766744830034,0.01126354,88782.0,88774.0,0.01126455]
[1766744832163,0.01126341,88783.0,88774.0,0.01126455]
[1766744832678,0.01126354,88782.0,88770.0,0.01128]
[1766744832832,0.00055,88774.0,88770.0,0.02254506]
[1766744833057,0.00055,88774.0,88770.0,0.01128]
[1766744833388,0.01126417,88777.0,88770.0,0.01128]
[1766744833551,0.01126443,88775.0,88764.0,0.05632872]
[1766744833775,7.273e-05,88775.0,88767.0,0.01126544]
[1766744833971,0.01133716,88775.0,88767.0,0.01126544]
[1766744834178,0.01133716,88775.0,88762.0,0.01126608]
[1766744834179,0.01126494,88771.0,88757.0,0.01126671]
[1766744834379,0.01126532,88768.0,88761.0,0.01128]
[1766744834611,0.01126544,88767.0,88761.0,0.01128]
[1766744834918,0.06759172,88769.0,88761.0,0.01128]
[1766744835279,0.01126506,88770.0,88761.0,0.0225462]
[1766744835475,0.01126519,88769.0,88761.0,0.0112662]
[1766744835868,0.01126481,88772.0,88762.0,0.01126608]
[1766744836067,0.01126468,88773.0,88764.0,0.01126582]
[1766744836411,0.01126481,88772.0,88763.0,0.01126595]
[1766744836617,0.01126468,88773.0,88764.0,0.01126582]
[1766744838015,0.01126468,88773.0,88765.0,0.0112657]
[1766744838214,0.01126481,88772.0,88763.0,0.01126595]
[1766744838414,0.01126481,88772.0,88764.0,0.01126582]
[1766744839001,0.01126481,88772.0,88763.0,0.01126595]
[1766744839197,0.01126481,88772.0,88764.0,0.01126582]
[1766744840945,0.01126481,88772.0,88763.0,0.01126595]
[1766744842858,0.01126494,88771.0,88762.0,0.01126608]
[1766744843454,0.01126494,88771.0,88763.0,0.01126595]
[1766744844260,0.01135273,88775.0,88768.0,0.01126532]
[1766744844477,0.01135273,88775.0,88770.0,0.01126506]
[1766744845489,0.01080373,88775.0,88771.0,0.01126494]
[1766744846294,0.01080373,88775.0,88772.0,0.01126481]
[1766744846582,0.01126379,88780.0,88772.0,0.01126481]
[1766744846729,0.01126379,88780.0,88771.0,0.01126494]
[1766744847331,0.01126379,88780.0,88772.0,0.01126481]
[1766744847553,0.01128,88781.0,88772.0,0.01126481]
[1766744847755,0.01128,88781.0,88774.0,0.01126455]
[1766744850505,0.01126291,88787.0,88781.0,0.00035]
[1766744850705,0.01126316,88785.0,88781.0,0.00035]
[1766744850873,0.01126316,88785.0,88775.0,0.06758606]
[1766744852306,0.01126329,88784.0,88776.0,0.0112643]
[1766744852889,0.01126316,88785.0,88776.0,0.0112643]
[1766744853710,0.01126329,88784.0,88776.0,0.0112643]
[1766744854347,0.01126316,88785.0,88776.0,0.0112643]
[1766744854849,0.01126329,88784.0,88775.0,0.01126443]
[1766744856349,0.01126341,88783.0,88775.0,0.01126443]
[1766744857960,0.000199,88775.0,88772.0,0.01126481]
[1766744858323,0.01126379,88780.0,88772.0,0.01126481]
[1766744858515,0.01126379,88780.0,88771.0,0.067589]
[1766744858925,0.01126379,88780.0,88772.0,0.01126481]
[1766744859327,0.01126367,88781.0,88772.0,0.01126481]
[1766744859777,0.01126379,88780.0,88771.0,0.067589]
[1766744861214,0.01126379,88780.0,88772.0,0.01126481]
[1766744862191,0.01126341,88783.0,88772.0,0.06758833]
[1766744862357,0.01126329,88784.0,88774.0,0.01126455]
[1766744862755,0.000199,88774.0,88772.0,0.01126481]
[1766744862962,0.01126379,88780.0,88771.0,0.01126494]
[1766744863168,0.01126379,88780.0,88772.0,0.01126481]
[1766744863385,0.01126379,88780.0,88771.0,0.01126494]
[1766744863586,0.06757873,88786.0,88776.0,0.0112643]
[1766744863783,0.01126252,88790.0,88778.0,0.01126405]
[1766744863989,0.01128,88792.0,88783.0,0.05631666]
[1766744864203,0.01128,88792.0,88787.0,0.00035]
[1766744864682,0.01128,88792.0,88784.0,0.01126329]
[1766744864889,0.01128,88792.0,88783.0,0.06758007]
[1766744864890,0.01126138,88799.0,88785.0,0.01126316]
[1766744865091,0.02294113,88801.0,88790.0,0.06757478]
[1766744865436,0.02294113,88801.0,88792.0,0.01126227]
[1766744865652,0.01168,88801.0,88793.0,0.01126214]
[1766744865853,0.01168,88801.0,88794.0,0.01126202]
[1766744866097,0.01168,88801.0,88795.0,0.01126189]
[1766744866416,0.01168,88801.0,88794.0,0.01126202]
[1766744867069,0.0004,88801.0,88795.0,0.01126189]
[1766744868759,0.0004,88801.0,88796.0,0.01126176]
[1766744869358,0.0004,88801.0,88795.0,0.01126189]
[1766744870302,0.0004,88801.0,88794.0,0.01126202]
[1766744870472,0.0004,88801.0,88795.0,0.01126189]
[1766744871068,0.0004,88801.0,88794.0,0.01126202]
[1766744872137,0.0004,88801.0,88791.0,0.05631155]
[1766744872336,0.0004,88801.0,88792.0,0.01126227]
[1766744872643,0.0004,88801.0,88793.0,0.01126214]
[1766744872934,0.0004,88801.0,88794.0,0.01126202]
[1766744874247,0.0004,88801.0,88795.0,0.01126189]
[1766744874553,0.0004,88801.0,88794.0,0.01126202]
[1766744874721,0.0004,88801.0,88792.0,0.06757327]
[1766744875109,0.01166113,88801.0,88793.0,0.01126214]
[1766744875852,0.000199,88793.0,88790.0,0.01126252]
[1766744875996,0.000199,88793.0,88788.0,0.01128]
[1766744876200,0.000199,88793.0,88788.0,0.02254278]
[1766744876502,0.01126164,88797.0,88788.0,0.02254278]
[1766744877449,0.01126164,88797.0,88789.0,0.01126265]
[1766744877751,0.000199,88789.0,88788.0,0.01128]
[1766744877901,0.01126214,88793.0,88788.0,0.01128]
[1766744878102,0.01126214,88793.0,88788.0,0.01073]
[1766744878352,0.01126202,88794.0,88788.0,0.01073]
[1766744879864,0.01126202,88794.0,88785.0,0.01126316]
[1766744880065,0.01126176,88796.0,88787.0,0.01126291]
[1766744880272,0.01126176,88796.0,88788.0,0.01126278]
[1766744880419,0.01126164,88797.0,88788.0,0.01126278]
[1766744880619,0.01132226,88797.0,88789.0,0.01126265]
[1766744881370,0.01132226,88797.0,88788.0,0.01126278]
[1766744881551,0.01132226,88797.0,88789.0,0.01126265]
[1766744882168,0.01132226,88797.0,88788.0,0.01126278]
[1766744882346,0.01126176,88796.0,88788.0,0.01126278]
[1766744882533,0.01126176,88796.0,88787.0,0.01126291]
[1766744882735,0.01126176,88796.0,88788.0,0.01126278]
[1766744882945,0.01132226,88797.0,88788.0,0.01126278]
[1766744883350,6.062e-05,88797.0,88789.0,0.01126265]
[1766744883550,0.01132226,88797.0,88788.0,0.01126278]
[1766744883866,0.01132226,88797.0,88789.0,0.01126265]
[1766744884462,6.062e-05,88797.0,88790.0,0.01126252]
[1766744884833,6.062e-05,88797.0,88789.0,0.01126265]
[1766744885236,6.062e-05,88797.0,88788.0,0.01126278]
[1766744885456,0.01126189,88795.0,88787.0,0.01126291]
[1766744885885,0.01126176,88796.0,88787.0,0.01126291]
[1766744886122,0.01126176,88796.0,88788.0,0.01126278]
[1766744886518,6.062e-05,88797.0,88789.0,0.01126265]
[1766744886715,0.07248,88796.0,88790.0,0.01126252]
[1766744887300,6.062e-05,88797.0,88796.0,0.00035]
[1766744887683,6.062e-05,88797.0,88787.0,0.01126291]
[1766744887684,6.062e-05,88797.0,88790.0,0.01126252]
[1766744889005,6.062e-05,88797.0,88789.0,0.01126265]
[1766744889528,0.01126176,88796.0,88788.0,0.01126278]
[1766744889778,6.062e-05,88797.0,88789.0,0.01126265]
[1766744890559,6.2e-07,88797.0,88791.0,0.0112624]
[1766744890761,6.2e-07,88797.0,88792.0,0.01126227]
[1766744891662,6.2e-07,88797.0,88791.0,0.0112624]
[1766744891868,6.2e-07,88797.0,88792.0,0.01126227]
[1766744898206,6.2e-07,88797.0,88790.0,0.08225252]
[1766744898411,0.01126226,88797.0,88790.0,0.07099]
[1766744898587,0.0001829,88792.0,88790.0,0.07099]
[1766744898935,9e-07,88792.0,88789.0,0.01126265]
[1766744899260,9e-07,88792.0,88788.0,0.01126278]
[1766744899698,9e-07,88792.0,88789.0,0.01126265]
[1766744899859,9e-07,88792.0,88788.0,0.01126278]
[1766744900061,9e-07,88792.0,88789.0,0.01126265]
[1766744902530,0.01126151,88798.0,88789.0,0.01126265]
[1766744902728,0.0004,88801.0,88798.0,0.000108]
[1766744902956,0.0004,88801.0,88798.0,6.062e-05]
[1766744905051,0.01166113,88801.0,88798.0,6.2e-07]
[1766744905251,0.0004,88801.0,88798.0,6.2e-07]
[1766744905458,0.01166113,88801.0,88798.0,6.2e-07]
[1766744906230,0.05630665,88800.0,88798.0,6.2e-07]
[1766744909414,0.06796731,88801.0,88798.0,6.2e-07]
[1766744910625,0.05630665,88800.0,88798.0,6.2e-07]
[1766744910832,0.04927396,88801.0,88798.0,6.2e-07]
[1766744911129,3.96e-06,88801.0,88798.0,6.2e-07]
[1766744911426,3.96e-06,88801.0,88795.0,0.01126189]
[1766744911789,9.689e-05,88801.0,88795.0,0.01126189]
[1766744912130,9.689e-05,88801.0,88798.0,0.06756871]
[1766744912131,8.9e-07,88801.0,88798.0,0.06756871]
[1766744914800,8.9e-07,88801.0,88798.0,0.01126151]
[1766744915806,0.0004,88807.0,88801.0,0.01126113]
[1766744916011,4.443e-05,88807.0,88802.0,0.011261]
[1766744916525,4.443e-05,88807.0,88800.0,0.01126126]